Workbook

Sheet Sheeting
A1: ARM WINCH SHEETING CALCULATOR
A19: Main boom measurements | G19: Jib boom measurements | N19: Rig | O19: Rig | P19: Rig
A20: R: | B20: 130 | C20: mm | D20: R^2: | E20: =B20^2 -> 16900 | G20: Rig#: | H20: 1 | J20: r: | K20: =H21*SIN(PI()*HLOOKUP(H20,N20:P30,11)/180) -> 126.2019448 | N20: 1 | O20: 2 | P20: 3
A21: F: | B21: 130 | C21: mm | D21: P^2: | E21: =B21^2 -> 16900 | G21: R: | H21: 130 | I21: mm | J21: f: | K21: =H22*SIN(HLOOKUP(H20,N20:P30,11)*PI()/180) -> 126.2019448 | M21: Luff | N21: 1330 | O21: 990 | P21: 740 | Q21: mm
A22: Diff: | B22: =B21-B20 -> 0 | C22: mm | D22: 2P: | E22: =B21*2 -> 260 | G22: F: | H22: 130 | I22: mm | J22: h: | K22: =H23*SIN(HLOOKUP(H20,N20:P30,11)*PI()/180) -> 9.707841908 | M22: Leech | N22: 1255 | O22: 910 | P22: 665 | Q22: mm
A23: Ht: | B23: 20 | C23: mm | D23: Ht^2: | E23: =B23^2 -> 400 | G23: Ht: | H23: 10 | I23: mm | J23: Ht^2: | K23: =K22^2 -> 94.24219451 | M23: Foot | N23: 385 | O23: 350 | P23: 300 | Q23: mm
A24: Incr: | B24: 5 | C24: deg | D24: Adj: | E24: =IF(B22<0,ABS(2*B22),0) -> 0 | H24: =B24 -> 5 | J24: r^2: | K24: =K20^2 -> 15926.93087 | M24: Offset | N24: 60 | O24: 55 | P24: 50 | Q24: mm
A25: Start: | B25: 2.991276615 | G25: Start: | H25: 38.86666501 | J25: f^2: | K25: =K21^2 -> 15926.93087 | M25: Off% | N25: =N24/N23 -> 0.1558441558 | O25: =O24/O23 -> 0.1571428571 | P25: =P24/P23 -> 0.1666666667
A26: Base: | B26: 5 | C26: degrees | G26: Base: | H26: 15 | I26: degrees | J26: 2rf: | K26: =2*K20*K21 -> 31853.86174 | M26: Tack | N26: =ACOS(((N21^2+(N23-20)^2-N22^2))/(2*N21*(N23-20)))*180/PI() -> 70.311645 | O26: =ACOS(((O21^2+(O23-20)^2-O22^2))/(2*O21*(O23-20)))*180/PI() -> 66.4658252 | P26: =ACOS(((P21^2+(P23-20)^2-P22^2))/(2*P21*(P23-20)))*180/PI() -> 63.67434951 | Q26: degrees
M27: Clew | N27: =ACOS((N22^2+(N23-20)^2-N21^2)/(2*N22*(N23-20)))*180/PI() -> 93.79581103 | O27: =ACOS((O22^2+(O23-20)^2-O21^2)/(2*O22*(O23-20)))*180/PI() -> 94.11517236 | P27: =ACOS((P22^2+(P23-20)^2-P21^2)/(2*P22*(P23-20)))*180/PI() -> 94.15388941 | Q27: degrees
M28: P.luff | N28: =N21-(N21-N22)*(1-N24/N23) -> 1266.688312 | O28: =O21-(O21-O22)*(1-O24/O23) -> 922.5714286 | P28: =P21-(P21-P22)*(1-P24/P23) -> 677.5 | Q28: mm
M29: P.foot | N29: =N23-N24 -> 325 | O29: =O23-O24 -> 295 | P29: =P23-P24 -> 250 | Q29: mm
A30: (Note: The button macros will fail if you insert or delete rows or columns.) | M30: Pivot | N30: =90-180*ACOS((N28^2+N22^2-(N29-20)^2)/(2*N28*N22))/PI() -> 76.11615824 | O30: =90-180*ACOS((O28^2+O22^2-(O29-20)^2)/(2*O28*O22))/PI() -> 72.75669292 | P30: =90-180*ACOS((P28^2+P22^2-(P29-20)^2)/(2*P28*P22))/PI() -> 70.29918492 | Q30: degrees
A32: Mr | B32: 100 | C32: mm | G32: Jr | H32: 85 | I32: mm
A33: Me | B33: 170 | C33: mm | G33: Je | H33: 160 | I33: mm
A34: Ame | B34: 100 | C34: mm | G34: Aje | H34: 95 | I34: mm
A35: Calc arm angle: | D35: =180*ACOS((MarmRadius^2+AMdistExit^2-MdistExit^2)/(2*MarmRadius*AMdistExit))/PI() -> 116.4233388 | E35: degrees wrt main take-off
A36: Calc arm angle: | D36: =180*ACOS((JarmRadius^2+AJdistExit^2-JdistExit^2)/(2*JarmRadius*AJdistExit))/PI() -> 125.3765402 | E36: degrees wrt jib take-off
A38: Step | C38: Feed | D38: EF | E38: X | F38: MSA | G38: Flag | H38: Step | J38: Feed | K38: EF | L38: X | M38: JSA | N38: Flag | O38: Diff | P38: %
A39: 0 | B39: =$D$35-$A39*$B$24 -> 116.4233388 | C39: =MdistExit-SQRT(MarmRadius^2+AdistExit^2-2*MarmRadius*AdistExit*COS(PI()*B39/180))+$B$22+$B$25+$E$24 -> 2.991276615 | D39: =SQRT(($B$23+C39)^2-$E$23) -> 11.34014111 | E39: =($E$20-D39^2+$E$21)/$E$22 -> 129.5053892 | F39: =360*ACOS(E39/$B$20)/(2*PI()) -> 4.999603133 | G39: =IF(ABS($B$26-$F$39)<0.1,"","OFF") ->  | H39: =A39 -> 0 | I39: =$D$36-$A39*$B$24 -> 125.3765402 | J39: =JdistExit-SQRT(JarmRadius^2+AdistExit^2-2*JarmRadius*AdistExit*COS(PI()*I39/180))+$H$25 -> 34.34582966 | K39: =SQRT(J39^2-$K$23) -> 32.94531561 | L39: =($K$24+$K$25-K39^2)/$K$26 -> 0.9659258325 | M39: =180*ACOS(L39)/PI() -> 14.99999863 | N39: =IF(ABS($H$26-$M$39)<0.1,"","OFF") ->  | O39: =M39-F39 -> 10.00039549 | P39: =O39/M39 -> 0.6666930939
A40: 1 | B40: 111.4233388 | C40: =MdistExit-SQRT(MarmRadius^2+AdistExit^2-2*MarmRadius*AdistExit*COS(PI()*B40/180))+$B$22+$B$25+$E$24 -> 7.748666568 | D40: =SQRT(($B$23+C40)^2-$E$23) -> 19.23508504 | E40: =($E$20-D40^2+$E$21)/$E$22 -> 128.5769673 | F40: =360*ACOS(E40/$B$20)/(2*PI()) -> 8.48536155 | G40: =IF(ABS($B$26-$F$39)<0.1,"","OFF") ->  | H40: =A40 -> 1 | I40: =$D$36-$A40*$B$24 -> 120.3765402 | J40: =JdistExit-SQRT(JarmRadius^2+AdistExit^2-2*JarmRadius*AdistExit*COS(PI()*I40/180))+$H$25 -> 38.17575179 | K40: =SQRT(J40^2-$K$23) -> 36.92080485 | L40: =($K$24+$K$25-K40^2)/$K$26 -> 0.9572062615 | M40: =180*ACOS(L40)/PI() -> 16.82243263 | N40: =IF(ABS($H$26-$M$39)<0.1,"","OFF") ->  | O40: =M40-F40 -> 8.337071084 | P40: =O40/M40 -> 0.4955924785
A41: 2 | B41: 106.4233388 | C41: 12.82060522 | D41: 26.02291542 | E41: 127.3954149 | F41: 11.48849155 | H41: 2 | I41: 115.3765402 | J41: 42.30802158 | K41: 41.1791998 | L41: 0.9467654343 | M41: 18.77933439 | O41: 7.290842837 | P41: 0.3882375534
A42: 3 | B42: 101.4233388 | C42: 18.19743785 | D42: 32.5429602 | E42: 125.9267529 | F42: 14.38059558 | H42: 3 | I42: 110.3765402 | J42: 46.73448501 | K42: 45.71509483 | L42: 0.9343919456 | M42: 20.86986945 | O42: 6.489273866 | P42: 0.31093984
A43: 4 | B43: 96.42333877 | C43: 23.86892935 | D43: 39.04462783 | E43: 124.136604 | F43: 17.27374759 | H43: 4 | I43: 105.3765402 | J43: 51.44637176 | K43: 50.52214339 | L43: 0.9198688375 | M43: 23.0930856 | O43: 5.819338016 | P43: 0.2519948229
A44: 5 | B44: 91.42333877 | C44: 29.82428371 | D44: 45.63397032 | E44: 121.9905414 | F44: 20.2172901 | H44: 5 | I44: 100.3765402 | J44: 56.43429899 | K44: 55.5930563 | L44: 0.9029760368 | M44: 25.44794603 | O44: 5.230655922 | P44: 0.2055433439
A45: 6 | B45: 86.42333877 | C45: 36.05216458 | D45: 52.36263128 | E45: 119.4544417 | F45: 23.23706247 | H45: 6 | I45: 95.37654015 | J45: 61.68827237 | K45: 60.91962536 | L45: 0.8834929095 | M45: 27.93337498 | O45: 4.696312514 | P45: 0.1681254956
A46: 7 | B46: 81.42333877 | C46: 42.54071684 | D46: 59.25657147 | E46: 116.4948413 | F46: 26.34809883 | H46: 7 | I46: 90.37654015 | J46: 67.19768268 | K46: 66.49275421 | L46: 0.8612009307 | M46: 30.5483081 | O46: 4.200209265 | P46: 0.1374940063
A47: 8 | B47: 76.42333877 | C47: 49.27758915 | D47: 66.32785507 | E47: 113.0792909 | F47: 29.55986697 | H47: 8 | I47: 85.37654015 | J47: 72.95129603 | K47: 72.30248542 | L47: 0.8358864793 | M47: 33.29174238 | O47: 3.731875407 | P47: 0.1120961278
A48: 9 | B48: 71.42333877 | C48: 56.24995749 | D48: 73.58026921 | E48: 109.1767076 | F48: 32.87879568 | H48: 9 | I48: 80.37654015 | J48: 78.93723433 | K48: 78.33801612 | L48: 0.8073437746 | M48: 36.16278306 | O48: 3.283987386 | P48: 0.09081124592
A49: 10 | B49: 66.42333877 | C49: 63.44454957 | D49: 81.01230063 | E49: 104.7577198 | F49: 36.30964493 | H49: 10 | I49: 75.37654015 | J49: 85.1429412 | K49: 84.58769556 | L49: 0.7753779966 | M49: 39.16068437 | O49: 2.851039442 | P49: 0.07280361637
A50: 11 | B50: 61.42333877 | C50: 70.84767007 | D50: 88.618842 | E50: 99.79500324 | F50: 39.85632654 | H50: 11 | I50: 70.37654015 | J50: 91.55512586 | K50: 91.03899646 | L50: 0.739808663 | M50: 42.28488086 | O50: 2.428554315 | P50: 0.05743315969
A51: 12 | B51: 56.42333877 | C51: 78.44522674 | D51: 96.39223344 | E51: 94.26360513 | F51: 43.52244542 | H51: 12 | I51: 65.37654015 | J51: 98.15967307 | K51: 97.6784481 | L51: 0.70047339 | M51: 45.5350035 | O51: 2.012558076 | P51: 0.04419804374
A52: 13 | B52: 51.42333877 | C52: 86.22275718 | D52: 104.322932 | E52: 88.1412533 | F52: 47.31169554 | H52: 13 | I52: 60.37654015 | J52: 104.9414996 | K52: 104.4915123 | L52: 0.6572322618 | M52: 48.91087062 | O52: 1.599175076 | P52: 0.03269569843
A53: 14 | B53: 46.42333877 | C53: 94.16545643 | D53: 112.3999619 | E53: 81.4086483 | F53: 51.22818436 | H53: 14 | I53: 55.37654015 | J53: 111.8843245 | K53: 111.4623698 | L53: 0.6099731964 | M53: 52.41243509 | O53: 1.184250729 | P53: 0.02259484275
A54: 15 | B54: 41.42333877 | C54: 102.2582051 | D54: 120.6112296 | E54: 74.04973571 | F54: 55.27673202 | H54: 15 | I54: 50.37654015 | J54: 118.970296 | K54: 118.57356 | L54: 0.5586190071 | M54: 56.03965341 | O54: 0.7629213983 | P54: 0.0136139564
A55: 16 | B55: 36.42333877 | C55: 110.4855982 | D55: 128.9437526 | E55: 66.05195639 | F55: 59.46317966 | H55: 16 | I55: 45.37654015 | J55: 126.1793696 | K55: 125.80537 | L55: 0.5031374456 | M55: 59.79221028 | O55: 0.3290306194 | P55: 0.005502901096
A56: 17 | B56: 31.42333877 | C56: 118.8319744 | D56: 137.3838314 | E56: 57.40647261 | F56: 63.79473823 | H56: 17 | I56: 40.37654015 | J56: 133.4882396 | K56: 133.1347735 | L56: 0.4435567006 | M56: 63.66896619 | O56: -0.125772035 | P56: -0.001975405641
A57: 18 | B57: 26.42333877 | C57: 127.2814459 | D57: 145.9171831 | E57: 48.108368 | F57: 68.28041284 | H57: 18 | I57: 35.37654015 | J57: 140.8684198 | K57: 140.5335174 | L57: 0.3799913597 | M57: 67.66685254 | O57: -0.6135603022 | P57: -0.009067368721
A58: 19 | B58: 21.42333877 | C58: 135.8179287 | D58: 154.5290488 | E58: 38.15681957 | F58: 72.93154852 | H58: 19 | I58: 30.37654015 | J58: 148.282611 | K58: 147.9644908 | L58: 0.3126895972 | M58: 71.77860691 | O58: -1.15294161 | P58: -0.01606246847
A59: 20 | B59: 16.42333877 | C59: 144.4251731 | D59: 163.2042816 | E59: 27.55524021 | F59: 77.76256344 | H59: 20 | I59: 25.37654015 | J59: 155.6773651 | K59: 155.3743859 | L59: 0.2421264337 | M59: 75.98792174 | O59: -1.774641698 | P59: -0.02335426021

Sheet Graph
A2: Step | B2: MSA | C2: JSA
A3: =Sheeting!A39 -> 0 | B3: =IF(Sheeting!F39<$H$25,Sheeting!F39,$H$25) -> 4.999603133 | C3: =Sheeting!M39 -> 14.99999863
A4: =Sheeting!A40 -> 1 | B4: =IF(Sheeting!F40<$H$25,Sheeting!F40,$H$25) -> 8.48536155 | C4: =Sheeting!M40 -> 16.82243263
A5: =Sheeting!A41 -> 2 | B5: =IF(Sheeting!F41<$H$25,Sheeting!F41,$H$25) -> 11.48849155 | C5: =Sheeting!M41 -> 18.77933439
A6: =Sheeting!A42 -> 3 | B6: =IF(Sheeting!F42<$H$25,Sheeting!F42,$H$25) -> 14.38059558 | C6: =Sheeting!M42 -> 20.86986945
A7: =Sheeting!A43 -> 4 | B7: =IF(Sheeting!F43<$H$25,Sheeting!F43,$H$25) -> 17.27374759 | C7: =Sheeting!M43 -> 23.0930856
A8: =Sheeting!A44 -> 5 | B8: =IF(Sheeting!F44<$H$25,Sheeting!F44,$H$25) -> 20.2172901 | C8: =Sheeting!M44 -> 25.44794603
A9: =Sheeting!A45 -> 6 | B9: =IF(Sheeting!F45<$H$25,Sheeting!F45,$H$25) -> 23.23706247 | C9: =Sheeting!M45 -> 27.93337498
A10: =Sheeting!A46 -> 7 | B10: =IF(Sheeting!F46<$H$25,Sheeting!F46,$H$25) -> 26.34809883 | C10: =Sheeting!M46 -> 30.5483081
A11: =Sheeting!A47 -> 8 | B11: =IF(Sheeting!F47<$H$25,Sheeting!F47,$H$25) -> 29.55986697 | C11: =Sheeting!M47 -> 33.29174238
A12: =Sheeting!A48 -> 9 | B12: =IF(Sheeting!F48<$H$25,Sheeting!F48,$H$25) -> 32.87879568 | C12: =Sheeting!M48 -> 36.16278306
A13: =Sheeting!A49 -> 10 | B13: =IF(Sheeting!F49<$H$25,Sheeting!F49,$H$25) -> 36.30964493 | C13: =Sheeting!M49 -> 39.16068437
A14: =Sheeting!A50 -> 11 | B14: =IF(Sheeting!F50<$H$25,Sheeting!F50,$H$25) -> 39.85632654 | C14: =Sheeting!M50 -> 42.28488086
A15: =Sheeting!A51 -> 12 | B15: =IF(Sheeting!F51<$H$25,Sheeting!F51,$H$25) -> 43.52244542 | C15: =Sheeting!M51 -> 45.5350035
A16: =Sheeting!A52 -> 13 | B16: =IF(Sheeting!F52<$H$25,Sheeting!F52,$H$25) -> 47.31169554 | C16: =Sheeting!M52 -> 48.91087062
A17: =Sheeting!A53 -> 14 | B17: =IF(Sheeting!F53<$H$25,Sheeting!F53,$H$25) -> 51.22818436 | C17: =Sheeting!M53 -> 52.41243509
A18: =Sheeting!A54 -> 15 | B18: =IF(Sheeting!F54<$H$25,Sheeting!F54,$H$25) -> 55.27673202 | C18: =Sheeting!M54 -> 56.03965341
A19: =Sheeting!A55 -> 16 | B19: =IF(Sheeting!F55<$H$25,Sheeting!F55,$H$25) -> 59.46317966 | C19: =Sheeting!M55 -> 59.79221028
A20: =Sheeting!A56 -> 17 | B20: =IF(Sheeting!F56<$H$25,Sheeting!F56,$H$25) -> 63.79473823 | C20: =Sheeting!M56 -> 63.66896619
A21: =Sheeting!A57 -> 18 | B21: =IF(Sheeting!F57<$H$25,Sheeting!F57,$H$25) -> 68.28041284 | C21: =Sheeting!M57 -> 67.66685254
A22: =Sheeting!A58 -> 19 | B22: =IF(Sheeting!F58<$H$25,Sheeting!F58,$H$25) -> 72.93154852 | C22: =Sheeting!M58 -> 71.77860691
A23: =Sheeting!A59 -> 20 | B23: =IF(Sheeting!F59<$H$25,Sheeting!F59,$H$25) -> 77.76256344 | C23: =Sheeting!M59 -> 75.98792174
A25: R | B25: =Sheeting!B20 -> 130 | C25: =Sheeting!H21 -> 130 | E25: Max main sheeting angle | H25: 80
A26: F | B26: =Sheeting!B21 -> 130 | C26: =Sheeting!H22 -> 130
A27: Ht | B27: =Sheeting!B23 -> 20 | C27: =Sheeting!H23 -> 10
